bitfinex/quotes_BTCUSD_20240908
["timestamp","ask_amount","ask_price","bid_price","bid_amount"]
[1725807211496,2.08482903,54366.0,54365.0,0.00148761]
[1725807211497,1.89245837,54366.0,54365.0,0.00148761]
[1725807211947,1.89745837,54366.0,54365.0,0.00248761]
[1725807212166,1.89745837,54366.0,54365.0,0.00148761]
[1725807212167,1.89245837,54366.0,54365.0,0.00148761]
[1725807212380,3.22943737,54366.0,54365.0,0.00148761]
[1725807212619,1.71447687,54366.0,54365.0,0.00148761]
[1725807212858,1.71447687,54366.0,54365.0,0.00048761]
[1725807212859,1.89824287,54366.0,54365.0,0.00048761]
[1725807213078,1.60394187,54366.0,54365.0,0.00048761]
[1725807213310,1.89324287,54366.0,54365.0,0.00148761]
[1725807213552,1.57394187,54366.0,54365.0,0.00148761]
[1725807213806,1.55743386,54366.0,54365.0,0.00148761]
[1725807214010,1.39267333,54366.0,54365.0,0.00148761]
[1725807214234,1.37667333,54366.0,54365.0,0.00148761]
[1725807214490,1.44441259,54366.0,54365.0,0.00148761]
[1725807214700,1.44641259,54366.0,54365.0,0.00148761]
[1725807214917,1.39167333,54366.0,54365.0,0.00148761]
[1725807215141,1.44641168,54366.0,54365.0,0.00148761]
[1725807215356,1.46782135,54366.0,54365.0,0.00048761]
[1725807215592,1.44038632,54366.0,54365.0,0.00048761]
[1725807215836,1.45438632,54366.0,54365.0,0.00048761]
[1725807216039,1.44038783,54366.0,54365.0,0.00048761]
[1725807216262,1.66819022,54366.0,54365.0,0.00048761]
[1725807216472,1.68219022,54366.0,54365.0,0.00048761]
[1725807216898,1.76433824,54366.0,54365.0,0.00048761]
[1725807217162,1.70519022,54366.0,54365.0,0.00048761]
[1725807217368,1.79970655,54366.0,54365.0,0.00048761]
[1725807217591,1.79971478,54366.0,54365.0,0.00048761]
[1725807217801,1.74503368,54366.0,54365.0,0.00048761]
[1725807218006,1.79849944,54366.0,54365.0,0.0003393]
[1725807218505,1.74381779,54366.0,54365.0,0.0003393]
[1725807218732,1.26689646,54366.0,54365.0,0.0003393]
[1725807218961,1.26489646,54366.0,54365.0,0.0003393]
[1725807219182,1.26689646,54366.0,54365.0,0.0003393]
[1725807219406,1.55019746,54366.0,54365.0,0.0003393]
[1725807219616,1.27111254,54366.0,54365.0,0.0013393]
[1725807219821,1.44196709,54366.0,54365.0,0.0013393]
[1725807220656,1.45396709,54366.0,54365.0,0.0023393]
[1725807221279,1.74826809,54366.0,54365.0,0.0023393]
[1725807221486,1.45396709,54366.0,54365.0,0.0023393]
[1725807221927,1.43996709,54366.0,54365.0,0.0013393]
[1725807222152,1.45396709,54366.0,54365.0,0.0023393]
[1725807222408,1.74826809,54366.0,54365.0,0.0023393]
[1725807222616,1.73426809,54366.0,54365.0,0.0013393]
[1725807222822,1.74826809,54366.0,54365.0,0.0023393]
[1725807223482,1.32981709,54366.0,54365.0,0.0023393]
[1725807223697,1.47696709,54366.0,54365.0,0.0023393]
[1725807224134,1.77126809,54366.0,54365.0,0.0023393]
[1725807225259,2.25972409,54366.0,54365.0,0.0023393]
[1725807225687,2.63022509,54366.0,54365.0,0.0023393]
[1725807225909,2.68488085,54366.0,54365.0,0.0023393]
[1725807226179,2.54171909,54366.0,54365.0,0.0023393]
[1725807226394,2.51734485,54366.0,54365.0,0.0023393]
[1725807227025,2.51734485,54366.0,54359.0,0.00163]
[1725807227026,1.356503,54360.0,54359.0,0.00163]
[1725807227231,1.517103,54360.0,54359.0,0.00163]
[1725807227446,1.616303,54360.0,54359.0,0.00163]
[1725807227855,1.61311146,54360.0,54359.0,0.00163]
[1725807228065,1.47631146,54360.0,54359.0,0.00163]
[1725807228686,1.63900261,54360.0,54359.0,0.00263]
[1725807228891,1.63000261,54360.0,54359.0,0.00163]
[1725807229341,1.64800261,54360.0,54359.0,0.00263]
[1725807229757,1.64400261,54360.0,54359.0,0.00263]
[1725807229972,1.65800261,54360.0,54359.0,0.00263]
[1725807231874,1.95233661,54360.0,54359.0,0.00263]
[1725807232148,2.99286982,54360.0,54359.0,0.00263]
[1725807232353,3.06906982,54360.0,54359.0,0.00263]
[1725807232606,2.33369882,54360.0,54359.0,0.00263]
[1725807233012,2.31969882,54360.0,54359.0,1e-06]
[1725807233412,1.64770046,54358.0,54357.0,0.00116892]
[1725807233616,2.5407135,54358.0,54357.0,0.00116892]
[1725807233861,1.6522749,54358.0,54357.0,0.00116892]
[1725807234068,1.66108336,54358.0,54357.0,0.00116892]
[1725807235107,1.68992825,54358.0,54357.0,0.00116892]
[1725807235962,1.71592825,54358.0,54357.0,0.00116892]
[1725807236381,1.70192825,54358.0,54357.0,0.00116892]
[1725807236600,1.68992825,54358.0,54357.0,0.00116892]
[1725807236800,1.71692825,54358.0,54357.0,0.00116892]
[1725807237025,1.70292825,54358.0,54357.0,0.00116892]
[1725807237404,1.68992825,54358.0,54357.0,0.00116892]
[1725807237641,1.70192825,54358.0,54357.0,0.00116892]
[1725807238458,1.71592825,54358.0,54357.0,0.00116892]
[1725807238643,1.54875625,54358.0,54357.0,0.00116892]
[1725807238848,1.53475625,54358.0,54357.0,0.00116892]
[1725807239050,1.52275625,54358.0,54357.0,0.00116892]
[1725807239290,1.54975625,54358.0,54357.0,0.00116892]
[1725807239483,1.69692825,54358.0,54357.0,0.00116892]
[1725807239770,1.51220135,54358.0,54357.0,0.00116892]
[1725807240640,1.48039289,54358.0,54357.0,0.00116892]
[1725807240846,1.48920135,54358.0,54357.0,0.00116892]
[1725807241546,1.46035646,54358.0,54357.0,0.00116892]
[1725807241771,1.44635646,54358.0,54357.0,0.00116892]
[1725807241984,1.59645806,54358.0,54357.0,0.00116892]
[1725807242200,1.59745806,54358.0,54357.0,0.00116892]
[1725807242636,1.60945806,54358.0,54357.0,0.00116892]
[1725807243060,1.60945806,54358.0,54349.0,0.1424]
[1725807243061,1.030358,54350.0,54349.0,0.1424]
[1725807243293,1.13427465,54350.0,54349.0,0.1424]
[1725807243498,1.23427465,54350.0,54349.0,0.1424]
[1725807243704,1.24308311,54350.0,54349.0,0.1424]
[1725807243886,1.24308311,54350.0,54349.0,0.082]
[1725807244170,1.24308311,54350.0,54346.0,0.06203]
[1725807244171,1.030414,54347.0,54346.0,0.06203]
[1725807244421,1.26353637,54347.0,54346.0,0.06203]
[1725807245106,1.13922246,54347.0,54346.0,0.06203]
[1725807246349,1.14222246,54347.0,54346.0,0.06203]
[1725807246572,1.14922246,54347.0,54346.0,0.06203]
[1725807247786,1.14922246,54347.0,54346.0,0.00163]
[1725807248730,1.14622246,54347.0,54346.0,0.00163]
[1725807248981,1.14622246,54347.0,54346.0,0.00123028]
[1725807249157,1.22521177,54347.0,54346.0,0.00123028]
[1725807249369,1.35381466,54347.0,54346.0,0.00123028]
[1725807249708,1.24895776,54347.0,54346.0,0.00123028]
[1725807249930,1.14222246,54347.0,54346.0,0.00123028]
[1725807250169,1.25078896,54347.0,54346.0,0.00123028]
[1725807250373,1.38758442,54347.0,54346.0,0.00123028]
[1725807250576,1.37824934,54347.0,54346.0,0.00123028]
[1725807250749,1.3872476,54347.0,54346.0,0.00123028]
[1725807250968,1.24993557,54347.0,54346.0,0.00123028]
[1725807251178,1.38723843,54347.0,54346.0,0.00123028]
[1725807251433,1.24993557,54347.0,54346.0,0.00123028]
[1725807251854,1.24906842,54347.0,54346.0,0.00123028]
[1725807252099,1.25506842,54347.0,54346.0,0.00123028]
[1725807252311,1.40263281,54347.0,54346.0,0.00123028]
[1725807252519,1.58036946,54347.0,54346.0,0.00123028]
[1725807252991,1.57436946,54347.0,54346.0,0.00123028]
[1725807253194,1.56536946,54347.0,54346.0,0.00123028]
[1725807253605,1.56936946,54347.0,54346.0,0.00123028]
[1725807254044,1.42980507,54347.0,54346.0,0.00123028]
[1725807254279,1.42180507,54347.0,54346.0,0.00123028]
[1725807255101,1.41780507,54347.0,54346.0,0.00123028]
[1725807255578,1.11759261,54347.0,54346.0,0.14763028]
[1725807255794,1.28990713,54347.0,54346.0,0.14763028]
[1725807256010,1.28690978,54347.0,54346.0,0.14763028]
[1725807256230,1.27990978,54347.0,54346.0,0.14763028]
[1725807256431,1.28590978,54347.0,54346.0,0.14763028]
[1725807256695,1.29490978,54347.0,54346.0,0.14763028]
[1725807256898,1.28890978,54347.0,54346.0,0.14763028]
[1725807257098,1.58331378,54347.0,54346.0,0.14763028]
[1725807257251,1.59212224,54347.0,54346.0,0.14763028]
[1725807257461,1.58312224,54347.0,54346.0,0.14763028]
[1725807257857,1.58612224,54347.0,54346.0,0.14763028]
[1725807258464,1.11759261,54347.0,54346.0,0.14763028]
[1725807258870,1.30314248,54347.0,54346.0,0.14763028]
[1725807259274,1.20229652,54347.0,54346.0,0.14763028]
[1725807259479,1.02274665,54347.0,54346.0,0.14763028]
[1725807259679,1.01974665,54347.0,54346.0,0.14763028]
[1725807259903,0.94754512,54347.0,54346.0,0.14763028]
[1725807260079,0.95054512,54347.0,54346.0,0.14763028]
[1725807260279,0.98820047,54347.0,54346.0,0.14763028]
[1725807260455,0.97920047,54347.0,54346.0,0.08343028]
[1725807260678,0.97920047,54347.0,54346.0,0.00123028]
[1725807260936,1.28060447,54347.0,54346.0,0.00123028]
[1725807261059,1.24475758,54347.0,54346.0,0.00123028]
[1725807261469,1.25375758,54347.0,54346.0,0.00123028]
[1725807261727,1.24475758,54347.0,54346.0,0.00123028]
[1725807261925,1.59966158,54347.0,54346.0,0.00123028]
[1725807262170,1.62566158,54347.0,54346.0,0.00123028]
[1725807262760,1.62266158,54347.0,54346.0,0.00123028]
[1725807262966,1.63066158,54347.0,54346.0,0.00123028]
[1725807263404,1.64166158,54347.0,54346.0,0.00123028]
[1725807263605,1.62266158,54347.0,54346.0,0.00123028]
[1725807264443,1.63666158,54347.0,54346.0,0.00123028]
[1725807265093,1.65151187,54347.0,54346.0,0.00123028]
[1725807265520,1.66551187,54347.0,54346.0,0.00123028]
[1725807265920,1.65151187,54347.0,54346.0,0.00123028]
[1725807266319,1.66351187,54347.0,54346.0,0.00123028]
[1725807266749,1.67751187,54347.0,54346.0,0.00123028]
[1725807268082,1.33372546,54343.0,54342.0,0.001628]
[1725807268271,1.35672546,54343.0,54342.0,0.001628]
[1725807268618,1.45672546,54343.0,54342.0,0.001628]
[1725807268846,1.73858581,54343.0,54342.0,0.0012081]
[1725807269063,1.92356888,54343.0,54342.0,0.0003855]
[1725807269281,2.77540488,54343.0,54342.0,0.00014667]
[1725807269510,3.45688594,54343.0,54342.0,0.00014667]
[1725807270168,3.41428794,54343.0,54342.0,0.00014667]
[1725807270385,3.42528794,54343.0,54342.0,0.00014667]
[1725807270647,3.41428794,54343.0,54342.0,0.00014667]
[1725807270853,1.33391846,54335.0,54334.0,0.00163]
[1725807271069,1.71577881,54335.0,54334.0,0.00163]
[1725807271270,1.77627881,54335.0,54334.0,0.00163]
[1725807271483,1.79927881,54335.0,54334.0,0.00163]
[1725807272394,2.06988216,54335.0,54334.0,0.00163]
[1725807272628,2.22126505,54335.0,54334.0,0.00163]
[1725807273072,2.21226505,54335.0,54334.0,0.00163]
[1725807273299,2.23326505,54335.0,54334.0,0.00163]
[1725807273508,2.22326505,54335.0,54334.0,0.00163]
[1725807273713,2.25211991,54335.0,54334.0,0.00163]
[1725807274057,2.26611991,54335.0,54334.0,0.00163]
[1725807274265,2.25211991,54335.0,54334.0,0.00163]
[1725807274687,2.26611991,54335.0,54334.0,0.00163]
[1725807274882,2.24111991,54335.0,54334.0,0.00163]
[1725807275056,2.25411991,54335.0,54334.0,0.00163]
[1725807275254,2.29479073,54335.0,54334.0,0.00163]
[1725807275457,2.35074244,54335.0,54334.0,0.00163]
[1725807275882,2.33774244,54335.0,54334.0,0.00163]
[1725807276092,2.34974244,54335.0,54334.0,0.00163]
[1725807276693,2.07913909,54335.0,54334.0,0.00163]
[1725807276892,2.02318738,54335.0,54334.0,0.0001245]
[1725807277368,1.94868738,54335.0,54334.0,0.0001245]
[1725807277586,1.94909801,54335.0,54334.0,0.0001245]
[1725807277794,1.96309801,54335.0,54334.0,0.0001245]
[1725807278029,1.46978492,54335.0,54334.0,0.1424245]
[1725807278433,1.48378492,54335.0,54334.0,0.1424245]
[1725807278665,1.45778492,54335.0,54334.0,0.1424245]
[1725807279026,1.48478492,54335.0,54334.0,0.11302405]
[1725807279287,1.65182939,54335.0,54334.0,0.11302405]
[1725807279496,1.63882939,54335.0,54334.0,0.11302405]
[1725807279971,1.63882939,54335.0,54334.0,0.11465605]
[1725807279972,1.65082939,54335.0,54334.0,0.11465605]
[1725807280617,1.63682939,54335.0,54334.0,0.11465605]
[1725807280825,1.65082939,54335.0,54334.0,0.11465605]
[1725807281235,1.62482939,54335.0,54334.0,0.11465605]
[1725807281448,1.63582939,54335.0,54334.0,0.11465605]
[1725807281655,1.64482939,54335.0,54334.0,0.11465605]
[1725807282248,1.63582939,54335.0,54334.0,0.11465605]
[1725807282455,1.64017081,54335.0,54334.0,0.11465605]
[1725807287454,1.62117081,54335.0,54334.0,0.11465605]
[1725807287673,1.63117081,54335.0,54334.0,0.11465605]
[1725807287906,1.63817081,54335.0,54334.0,0.11465605]
[1725807288143,1.82380055,54335.0,54334.0,0.001632]
[1725807288407,1.95563981,54335.0,54334.0,0.00070851]
[1725807288638,1.92678495,54335.0,54334.0,0.00070851]
[1725807289098,1.030813,54326.0,54325.0,0.07095165]
[1725807289333,1.32652628,54326.0,54325.0,0.07095165]
[1725807290058,1.22256413,54326.0,54325.0,0.07095165]
[1725807291843,1.22556413,54326.0,54325.0,0.07095165]
[1725807292075,1.25966358,54326.0,54325.0,0.13485165]
[1725807292295,1.29320723,54326.0,54325.0,0.13485165]
[1725807292530,1.28720723,54326.0,54325.0,0.13485165]
[1725807292742,1.43544062,54326.0,54325.0,0.13485165]
[1725807292944,1.43544062,54326.0,54325.0,0.13648365]
[1725807293866,1.43444062,54326.0,54325.0,0.13648365]
[1725807294072,1.43144062,54326.0,54325.0,0.13648365]
[1725807294284,1.43444062,54326.0,54325.0,0.13648365]
[1725807294492,1.43844062,54326.0,54325.0,0.13648365]
[1725807294759,1.43544062,54326.0,54325.0,0.13648365]
[1725807294973,1.44524908,54326.0,54325.0,0.13648365]
[1725807295385,1.44124908,54326.0,54325.0,0.13648365]
[1725807295612,1.44724908,54326.0,54325.0,0.13648365]
[1725807295832,1.45024908,54326.0,54325.0,0.13648365]
[1725807297335,1.44024908,54326.0,54325.0,0.13648365]
[1725807297548,1.44324908,54326.0,54325.0,0.13648365]
[1725807297802,1.29620723,54326.0,54325.0,0.13648365]
[1725807298025,1.45133393,54326.0,54325.0,0.13648365]
[1725807298238,1.29120723,54326.0,54325.0,0.13648365]
[1725807298673,1.28820723,54326.0,54325.0,0.13648365]
[1725807298894,1.4463071,54326.0,54325.0,0.13648365]
[1725807299130,1.60053747,54326.0,54325.0,0.07459996]
[1725807299352,1.4514376,54326.0,54325.0,0.07459996]
[1725807299809,1.28620723,54326.0,54325.0,0.07459996]
[1725807300546,1.4574376,54326.0,54325.0,0.07459996]
[1725807300763,1.4654376,54326.0,54325.0,0.07459996]
[1725807300972,1.454037,54326.0,54325.0,0.07459996]
[1725807301191,1.59432633,54326.0,54325.0,0.07459996]
[1725807301418,1.63622815,54326.0,54325.0,0.07459996]
[1725807301850,1.48793882,54326.0,54325.0,0.07459996]
[1725807302533,0.89890282,54326.0,54325.0,0.07459996]
[1725807302998,0.89890282,54326.0,54325.0,0.143632]
[1725807302999,1.19342082,54326.0,54325.0,0.143632]
[1725807303445,0.89890282,54326.0,54325.0,0.143632]
[1725807303657,1.19342082,54326.0,54325.0,0.143632]
[1725807303902,1.06917826,54326.0,54325.0,0.145632]
[1725807304133,1.19342082,54326.0,54325.0,0.145632]
[1725807304993,1.19342082,54326.0,54325.0,0.143632]
[1725807305229,0.97481846,54326.0,54325.0,0.143632]
[1725807305486,1.15573754,54326.0,54325.0,0.143632]
[1725807305705,1.15573754,54326.0,54325.0,0.145632]
[1725807305928,1.15573754,54326.0,54325.0,0.143632]
[1725807309090,1.04740434,54326.0,54325.0,0.143632]
[1725807309325,1.34192234,54326.0,54325.0,0.143632]
[1725807309975,1.04740434,54326.0,54325.0,0.143632]
[1725807310199,0.57587645,54326.0,54325.0,0.143632]
[1725807310419,0.8658943,54326.0,54325.0,0.143632]
[1725807310637,0.90511123,54326.0,54325.0,0.143632]
[1725807311073,0.41119577,54326.0,54325.0,0.143632]
[1725807311537,0.70571377,54326.0,54325.0,0.143632]
[1725807312181,0.70571377,54326.0,54325.0,0.140632]
[1725807313507,1.16583345,54326.0,54325.0,0.138632]
[1725807313720,1.31186689,54326.0,54325.0,0.138632]
[1725807313932,1.49434781,54326.0,54325.0,0.138632]
[1725807314184,1.32874613,54326.0,54325.0,0.138632]
[1725807315018,1.32874613,54326.0,54325.0,0.0621]
[1725807316363,1.62326413,54326.0,54325.0,0.001632]
[1725807316576,1.62408013,54326.0,54325.0,0.001632]
[1725807318338,1.62208013,54326.0,54325.0,0.001632]
[1725807318583,1.95988231,54326.0,54325.0,0.001632]
[1725807318807,1.79658859,54326.0,54325.0,0.001632]
[1725807319069,2.09110659,54326.0,54325.0,0.001632]
[1725807319705,1.79694163,54326.0,54325.0,0.001632]
[1725807319931,2.12339289,54326.0,54325.0,0.001632]
[1725807320145,2.13039289,54326.0,54325.0,0.001632]
[1725807320370,2.12039289,54326.0,54325.0,0.001632]
[1725807320865,2.13239289,54326.0,54325.0,0.001632]
[1725807321073,2.13239289,54326.0,54324.0,0.00062555]
[1725807321074,1.03963846,54325.0,54324.0,0.00062555]
[1725807321298,1.73527279,54325.0,54324.0,0.00062555]
[1725807321536,1.79111014,54325.0,54324.0,0.00062555]
[1725807321746,2.42611628,54325.0,54324.0,0.00062555]
[1725807321973,2.69791775,54325.0,54324.0,0.00062555]
[1725807322187,2.42611628,54325.0,54324.0,0.00062555]
[1725807322884,1.031096,54311.0,54310.0,0.00162]
[1725807323130,1.52812561,54311.0,54310.0,0.00162]
[1725807324261,1.82372461,54311.0,54310.0,0.00162]
[1725807324517,1.83327287,54311.0,54310.0,0.00162]
[1725807325374,1.88593739,54311.0,54310.0,0.00162]
[1725807325593,2.3728471,54311.0,54310.0,0.00162]
[1725807326484,2.3818471,54311.0,54310.0,0.00162]
[1725807326942,2.3758471,54311.0,54310.0,0.00162]
[1725807327176,2.3778471,54311.0,54310.0,0.00162]
[1725807327424,2.3918471,54311.0,54310.0,0.00162]
[1725807327640,2.3808471,54311.0,54310.0,0.00162]
[1725807327876,2.3948471,54311.0,54310.0,0.00162]
[1725807328301,2.09192046,54311.0,54310.0,0.00162]
[1725807328516,2.05865048,54311.0,54310.0,0.00162]
[1725807328744,2.36724948,54311.0,54310.0,0.00162]
[1725807328969,1.47735246,54305.0,54304.0,0.00067925]
[1725807329440,1.88792187,54305.0,54304.0,0.00067925]
[1725807329658,1.91092187,54305.0,54304.0,0.00067925]
[1725807330088,1.91092187,54305.0,54294.0,0.0627]
[1725807330089,1.33470146,54303.0,54291.0,0.06432]
[1725807330284,2.21209694,54303.0,54293.0,0.61700836]
[1725807330493,2.31209694,54303.0,54293.0,0.0627]
[1725807330756,2.01745394,54303.0,54293.0,0.0627]
[1725807330998,1.95325394,54303.0,54302.0,0.0010725]
[1725807332070,1.96725394,54303.0,54302.0,0.0010725]
[1725807333186,1.95221738,54303.0,54302.0,0.0010725]
[1725807333419,1.93821738,54303.0,54302.0,0.0010725]
[1725807333651,1.92421738,54303.0,54302.0,0.0010725]
[1725807333895,1.97785123,54303.0,54302.0,0.0010725]
[1725807334121,1.96385123,54303.0,54302.0,0.0010725]
[1725807334344,1.79906025,54303.0,54302.0,0.0010725]
[1725807334561,1.80006025,54303.0,54302.0,0.0010725]
[1725807334770,1.77706025,54303.0,54302.0,0.0010725]
[1725807334976,1.79006025,54303.0,54302.0,0.0010725]
[1725807335192,1.49541725,54303.0,54302.0,0.0010725]
[1725807335421,1.47360879,54303.0,54302.0,0.0651725]
[1725807335653,1.47360879,54303.0,54302.0,0.1480725]
[1725807335887,1.17896579,54303.0,54302.0,0.1480725]
[1725807336098,1.32295016,54303.0,54302.0,0.1480725]
[1725807336309,1.33695016,54303.0,54302.0,0.1480725]
[1725807336547,1.1103636,54303.0,54302.0,0.1480725]
[1725807336758,0.99377901,54303.0,54302.0,0.1480725]
[1725807336988,0.71313601,54303.0,54302.0,0.1500725]
[1725807337254,0.33609453,54303.0,54302.0,0.1480725]
[1725807337494,0.33609453,54303.0,54302.0,0.1500725]
[1725807337495,0.41644081,54303.0,54302.0,0.1500725]
[1725807337746,0.27911981,54303.0,54302.0,0.1500725]
[1725807337981,0.41444081,54303.0,54302.0,0.1500725]
[1725807338207,0.42144081,54303.0,54302.0,0.1500725]
[1725807338698,0.41444081,54303.0,54302.0,0.1500725]
[1725807338918,0.41644081,54303.0,54302.0,0.1500725]
[1725807339818,0.70108381,54303.0,54302.0,0.1480725]
[1725807340025,0.99672681,54303.0,54302.0,0.1480725]
[1725807340505,0.99372681,54303.0,54302.0,0.1480725]
[1725807340697,0.70008381,54303.0,54302.0,0.1500725]
[1725807341223,0.69908381,54303.0,54302.0,0.1500725]
[1725807341650,0.59210368,54303.0,54302.0,0.1500725]
[1725807341871,0.29746068,54303.0,54302.0,0.1500725]
[1725807342084,0.11926998,54303.0,54302.0,0.1500725]
[1725807342520,0.01926998,54303.0,54302.0,0.1500725]
[1725807342740,0.11926998,54303.0,54302.0,0.1500725]
[1725807342961,0.1922071,54303.0,54302.0,0.1500725]
[1725807343393,0.1922071,54303.0,54302.0,0.15126404]
[1725807343394,0.11926998,54303.0,54302.0,0.15126404]
[1725807343604,0.14813687,54303.0,54302.0,0.29858804]
[1725807343826,0.14813687,54303.0,54302.0,0.15126404]
[1725807343827,0.1,54303.0,54302.0,0.15126404]
[1725807344058,0.248132,54305.0,54304.0,0.002]
[1725807344293,0.248132,54305.0,54304.0,0.0684]
[1725807345618,0.27699832,54305.0,54304.0,0.0684]
[1725807346109,0.27699832,54305.0,54304.0,0.1439]
[1725807346551,0.27899832,54305.0,54304.0,0.1439]
[1725807347867,0.33398166,54305.0,54304.0,0.1439]
[1725807348078,0.27899832,54305.0,54304.0,0.1439]
[1725807350786,0.62667865,54305.0,54304.0,0.1419]
[1725807351009,0.97629399,54305.0,54304.0,0.1419]
[1725807352551,0.92324566,54305.0,54304.0,0.1419]
[1725807353471,0.86826232,54305.0,54304.0,0.1419]
[1725807353722,0.95073126,54305.0,54304.0,0.1419]
[1725807355265,0.86826232,54305.0,54304.0,0.1419]
[1725807355485,0.57363032,54305.0,54304.0,0.1419]
[1725807355728,0.36149349,54305.0,54304.0,0.1419]
[1725807355958,0.36149349,54305.0,54304.0,0.1439]
[1725807356602,0.65612549,54305.0,54304.0,0.1439]
[1725807357295,0.80583448,54305.0,54304.0,0.1439]
[1725807359292,0.95984602,54305.0,54304.0,0.1439]
[1725807360153,0.56270587,54305.0,54304.0,0.1439]
[1725807360370,0.38565182,54305.0,54304.0,0.1439]
[1725807360612,0.37927175,54305.0,54304.0,0.1439]
[1725807360832,0.002,54305.0,54304.0,0.60704654]
[1725807361058,0.002,54305.0,54304.0,0.90168354]
[1725807361517,0.002,54305.0,54304.0,0.60704654]
[1725807361944,0.003,54305.0,54304.0,0.60704654]
[1725807362147,0.003816,54305.0,54304.0,0.60704654]
[1725807362996,0.001816,54305.0,54304.0,0.60704654]
[1725807363442,0.149132,54305.0,54304.0,0.15509154]
[1725807363661,0.149132,54305.0,54304.0,0.30240954]
[1725807363662,0.001816,54305.0,54304.0,0.30240954]
[1725807363852,0.05691041,54305.0,54304.0,0.15609154]
[1725807364121,0.002816,54305.0,54304.0,0.15609154]
[1725807364299,0.002816,54305.0,54304.0,0.15509154]
[1725807364300,0.05691041,54305.0,54304.0,0.15509154]
[1725807364504,0.05591041,54305.0,54304.0,0.16709154]
[1725807364712,0.001816,54305.0,54304.0,0.16709154]
[1725807364928,0.0569516,54305.0,54304.0,0.16709154]
[1725807365177,0.05594681,54305.0,54304.0,0.16509154]
[1725807365360,0.08445575,54305.0,54304.0,0.16709154]
[1725807366144,0.001816,54305.0,54304.0,0.16709154]
[1725807366346,0.1,54309.0,54304.0,0.16709154]
[1725807366347,0.05515277,54313.0,54312.0,0.01119154]
[1725807366564,0.05515277,54315.0,54314.0,0.31038254]
[1725807366776,0.08273465,54318.0,54316.0,0.0664]
[1725807366987,0.147288,54315.0,54314.0,0.01]
[1725807367187,0.84671964,54315.0,54314.0,0.008]
[1725807367555,0.30440079,54315.0,54314.0,0.008]
[1725807367763,0.30440079,54315.0,54314.0,0.01]
[1725807368011,0.30740079,54315.0,54314.0,0.01]
[1725807368221,0.150288,54315.0,54314.0,0.0744]
[1725807368447,0.003,54315.0,54314.0,0.30838254]
[1725807368683,0.08569909,54315.0,54314.0,0.30838254]
[1725807368896,0.08569909,54315.0,54314.0,0.60296554]
[1725807369123,0.003,54315.0,54314.0,0.60296554]
[1725807369336,0.08269909,54316.0,54315.0,0.213688]
[1725807369573,0.08269909,54316.0,54315.0,0.230688]
[1725807369786,0.08269909,54319.0,54317.0,0.1409]
[1725807370011,0.08269909,54319.0,54318.0,0.0814]
[1725807370237,0.26913592,54320.0,54318.0,0.0814]
[1725807370454,0.08265641,54319.0,54318.0,0.0794]
[1725807370876,0.08265223,54319.0,54318.0,0.0794]
[1725807371362,0.05608299,54319.0,54318.0,0.0834]
[1725807371862,0.05508299,54319.0,54318.0,0.015]
[1725807372076,0.08265223,54319.0,54318.0,0.006]
[1725807372310,0.08365223,54319.0,54318.0,0.08459154]
[1725807372527,0.001,54319.0,54318.0,0.23187154]
[1725807372740,0.05607384,54319.0,54318.0,0.23187154]
[1725807373378,0.05607384,54319.0,54318.0,0.08459154]
[1725807373614,0.05507384,54319.0,54318.0,0.08059154]
[1725807373799,0.05607384,54319.0,54318.0,0.08459154]
[1725807374485,0.05507384,54319.0,54318.0,0.08059154]
[1725807374706,0.05607384,54319.0,54318.0,0.08459154]
[1725807374913,0.05688884,54319.0,54318.0,0.08459154]
[1725807375553,0.001815,54319.0,54318.0,0.08459154]
[1725807377137,0.001815,54319.0,54318.0,0.23187154]
[1725807377357,0.001815,54319.0,54318.0,0.31347154]
[1725807378448,0.001815,54319.0,54318.0,0.16619154]
[1725807380469,0.147269,54322.0,54321.0,0.006]
[1725807380673,0.22986613,54322.0,54321.0,0.006]
[1725807381100,0.147269,54322.0,54321.0,0.006]
[1725807381300,0.22986613,54322.0,54321.0,0.006]
[1725807381510,0.20234998,54322.0,54321.0,0.006]
[1725807381773,0.147269,54322.0,54321.0,0.006]
[1725807381992,0.147269,54322.0,54321.0,0.009]
[1725807382229,0.202356,54322.0,54321.0,0.009]
[1725807382910,0.147269,54322.0,54321.0,0.009]
[1725807383148,0.22989739,54322.0,54321.0,0.009]
[1725807383411,0.52443639,54322.0,54321.0,0.009]
[1725807383826,0.441808,54322.0,54321.0,0.009]
[1725807384054,0.52443639,54322.0,54321.0,0.009]
[1725807384484,0.441808,54322.0,54321.0,0.009]
[1725807384689,0.16428036,54322.0,54321.0,0.009]
[1725807385104,0.45881936,54322.0,54321.0,0.009]
[1725807385316,0.51390402,54322.0,54321.0,0.009]
[1725807385540,0.45881936,54322.0,54321.0,0.009]
[1725807385952,0.51390701,54322.0,54321.0,0.009]
[1725807386174,0.45881936,54322.0,54321.0,0.009]
[1725807386385,0.51391129,54322.0,54321.0,0.009]
[1725807386613,0.51391087,54322.0,54321.0,0.009]
[1725807386833,0.51391218,54322.0,54321.0,0.009]
[1725807387035,0.51391114,54322.0,54321.0,0.009]
[1725807387268,0.45881936,54322.0,54321.0,0.009]
[1725807387475,0.51391214,54322.0,54321.0,0.009]
[1725807387686,0.45881936,54322.0,54321.0,0.009]
[1725807387888,0.45963436,54322.0,54321.0,0.009]
[1725807388576,0.51472835,54322.0,54321.0,0.009]
[1725807388993,0.45963436,54322.0,54321.0,0.009]
[1725807389225,0.98080175,54322.0,54321.0,0.003]
[1725807389430,0.98080175,54322.0,54321.0,0.009]
[1725807389431,1.03508252,54322.0,54321.0,0.009]
[1725807389635,1.03508252,54322.0,54321.0,0.003]
[1725807390081,1.06394182,54322.0,54321.0,0.003]
[1725807390294,1.03422232,54322.0,54321.0,0.003]
[1725807390557,1.14842451,54322.0,54321.0,0.003]
[1725807390792,1.14443303,54322.0,54321.0,0.003]
[1725807391033,1.03422232,54322.0,54321.0,0.003]
[1725807391272,0.441834,54319.0,54318.0,0.00163]
[1725807391494,0.52449194,54319.0,54318.0,0.00763]
[1725807392132,0.441834,54319.0,54318.0,0.00763]
[1725807393226,0.52449194,54319.0,54318.0,0.00763]
[1725807393450,0.441834,54319.0,54318.0,0.00763]
[1725807394140,0.52549194,54319.0,54318.0,0.01063]
[1725807394408,0.52449194,54319.0,54318.0,0.01063]
[1725807394653,0.52549194,54319.0,54318.0,0.01063]
[1725807394879,0.71666002,54319.0,54318.0,0.00763]
[1725807395100,0.76235162,54319.0,54318.0,0.00963]
[1725807397127,0.76335162,54319.0,54318.0,0.00963]
[1725807397339,1.05690762,54319.0,54318.0,0.00163]
[1725807397548,0.91907308,54319.0,54318.0,0.00163]
[1725807397766,0.91907308,54319.0,54318.0,0.00463]